[Event "Titled Tuesday Blitz August 09 Early 2022"]
[White "Ferreira, Vitor Hugo Vieira"]
[Black "Sanal, Vahap"]
[WhiteFideId "2119765"]
[BlackFideId "6300545"]
[WhiteElo "2168"]
[BlackElo "2574"]
[Result "0-1"]
[Round "01"]
[TimeControl "180+1"]
[Date "2022.08.09"]
[WhiteClock "0:00:04"]
[BlackClock "0:02:06"]

1. e4 {[%clk 0:02:59]}  g6 {[%clk 0:03:00]} 2. d4 {[%clk 0:02:58]}  Bg7 {[%clk 0:03:01]} 3. Nf3 {[%clk 0:02:56]}  d6 {[%clk 0:03:01]} 4. Nc3 {[%clk 0:02:56]}  c6 {[%clk 0:03:02]} 5. Be2 {[%clk 0:02:56]}  b5 {[%clk 0:03:02]} 6. O-O {[%clk 0:02:55]}  Bb7 {[%clk 0:03:01]} 7. Re1 {[%clk 0:02:54]}  Nd7 {[%clk 0:03:01]} 8. Bf1 {[%clk 0:02:55]}  Qc7 {[%clk 0:03:00]} 9. a4 {[%clk 0:02:50]}  a6 {[%clk 0:02:59]} 10. axb5 {[%clk 0:02:48]}  axb5 {[%clk 0:02:59]} 11. Rxa8+ {[%clk 0:02:48]}  Bxa8 {[%clk 0:03:00]} 12. b4 {[%clk 0:02:48]}  Ngf6 {[%clk 0:02:53]} 13. Bg5 {[%clk 0:02:44]}  h6 {[%clk 0:02:53]} 14. Bh4 {[%clk 0:02:43]}  g5 {[%clk 0:02:53]} 15. Bg3 {[%clk 0:02:43]}  Nh5 {[%clk 0:02:54]} 16. Qd2 {[%clk 0:02:36]}  Nxg3 {[%clk 0:02:53]} 17. hxg3 {[%clk 0:02:35]}  O-O {[%clk 0:02:53]} 18. Ra1 {[%clk 0:02:21]}  Bb7 {[%clk 0:02:52]} 19. Nd1 {[%clk 0:02:00]}  e6 {[%clk 0:02:44]} 20. c3 {[%clk 0:01:57]}  Nb6 {[%clk 0:02:43]} 21. Ne3 {[%clk 0:01:55]}  c5 {[%clk 0:02:40]} 22. bxc5 {[%clk 0:01:53]}  dxc5 {[%clk 0:02:41]} 23. Bxb5 {[%clk 0:01:42]}  Bxe4 {[%clk 0:02:40]} 24. Bd3 {[%clk 0:01:11]}  Bxf3 {[%clk 0:02:25]} 25. gxf3 {[%clk 0:01:03]}  cxd4 {[%clk 0:02:25]} 26. cxd4 {[%clk 0:01:03]}  Rd8 {[%clk 0:02:24]} 27. Ng4 {[%clk 0:01:00]}  Bxd4 {[%clk 0:02:22]} 28. Nxh6+ {[%clk 0:00:43]}  Kf8 {[%clk 0:02:22]} 29. Qxg5 {[%clk 0:00:43]}  Bxa1 {[%clk 0:02:10]} 30. Nxf7 {[%clk 0:00:09]}  Rxd3 {[%clk 0:02:07]} 31. Qh6+ {[%clk 0:00:06]}  Bg7 {[%clk 0:02:06]} 32. Qxe6 {[%clk 0:00:05]}  Qxf7 {[%clk 0:02:06]} 33. Qxb6 {[%clk 0:00:04]}  Qxf3 {[%clk 0:02:06]} 0-1


[Site "https://www.chess.com"]

[Event "Titled Tuesday Blitz August 09 Early 2022"]
[White "Fiorito, Joaquin"]
[Black "Yaksin, Oleg"]
[WhiteFideId "180173"]
[BlackFideId "24105880"]
[WhiteElo "1758"]
[BlackElo "2256"]
[Result "0-1"]
[Round "01"]
[TimeControl "180+1"]
[Date "2022.08.09"]
[WhiteClock "0:00:52"]
[BlackClock "0:00:50"]

1. e4 {[%clk 0:03:00]}  c5 {[%clk 0:02:59]} 2. Nf3 {[%clk 0:03:00]}  d6 {[%clk 0:03:00]} 3. d4 {[%clk 0:03:00]}  cxd4 {[%clk 0:03:01]} 4. Nxd4 {[%clk 0:03:01]}  Nf6 {[%clk 0:03:01]} 5. Nc3 {[%clk 0:03:02]}  Nc6 {[%clk 0:03:02]} 6. Bg5 {[%clk 0:03:01]}  e6 {[%clk 0:03:01]} 7. Qd2 {[%clk 0:03:00]}  Be7 {[%clk 0:03:02]} 8. O-O-O {[%clk 0:03:00]}  O-O {[%clk 0:03:03]} 9. f4 {[%clk 0:03:00]}  d5 {[%clk 0:02:56]} 10. e5 {[%clk 0:02:48]}  Nd7 {[%clk 0:02:56]} 11. Bxe7 {[%clk 0:02:47]}  Qxe7 {[%clk 0:02:57]} 12. h4 {[%clk 0:02:43]}  f6 {[%clk 0:02:42]} 13. exf6 {[%clk 0:02:38]}  Qxf6 {[%clk 0:02:43]} 14. g3 {[%clk 0:02:35]}  Nc5 {[%clk 0:02:29]} 15. Bg2 {[%clk 0:02:31]}  Bd7 {[%clk 0:02:19]} 16. Rhe1 {[%clk 0:02:31]}  Rad8 {[%clk 0:02:16]} 17. Kb1 {[%clk 0:02:30]}  a6 {[%clk 0:02:07]} 18. Qe3 {[%clk 0:02:28]}  Nxd4 {[%clk 0:02:03]} 19. Rxd4 {[%clk 0:02:27]}  b6 {[%clk 0:01:58]} 20. Rdd1 {[%clk 0:02:25]}  a5 {[%clk 0:01:53]} 21. Qe5 {[%clk 0:02:09]}  Rc8 {[%clk 0:01:34]} 22. Bh3 {[%clk 0:01:59]}  Kh8 {[%clk 0:01:20]} 23. Qxf6 {[%clk 0:01:56]}  Rxf6 {[%clk 0:01:16]} 24. f5 {[%clk 0:01:47]}  exf5 {[%clk 0:01:14]} 25. Nxd5 {[%clk 0:01:47]}  Rd6 {[%clk 0:01:13]} 26. Ne7 {[%clk 0:01:43]}  Rxd1+ {[%clk 0:01:08]} 27. Rxd1 {[%clk 0:01:44]}  Rf8 {[%clk 0:01:07]} 28. Bxf5 {[%clk 0:01:39]}  Bxf5 {[%clk 0:01:03]} 29. Nxf5 {[%clk 0:01:40]}  g6 {[%clk 0:01:04]} 30. Nd4 {[%clk 0:01:37]}  Rf2 {[%clk 0:00:59]} 31. Rg1 {[%clk 0:01:30]}  Ne4 {[%clk 0:00:59]} 32. Kc1 {[%clk 0:01:19]}  Kg7 {[%clk 0:00:56]} 33. Kd1 {[%clk 0:00:59]}  Rd2+ {[%clk 0:00:55]} 34. Kc1 {[%clk 0:00:58]}  Rxd4 {[%clk 0:00:55]} 35. c3 {[%clk 0:00:55]}  Rd3 {[%clk 0:00:54]} 36. Kc2 {[%clk 0:00:54]}  Rxg3 {[%clk 0:00:52]} 37. Re1 {[%clk 0:00:54]}  Rg2+ {[%clk 0:00:49]} 38. Kd3 {[%clk 0:00:52]}  Nc5+ {[%clk 0:00:49]} 39. Kc4 {[%clk 0:00:52]}  Rxb2 {[%clk 0:00:50]} 0-1


[Site "https://www.chess.com"]

[Event "Titled Tuesday Blitz August 09 Early 2022"]
[White "Garcia, Erick"]
[Black "Nakamura, Hikaru"]
[WhiteFideId "2058880"]
[BlackFideId "2016192"]
[WhiteElo "2202"]
[BlackElo "2850"]
[Result "0-1"]
[Round "01"]
[TimeControl "180+1"]
[Date "2022.08.09"]
[WhiteClock "0:01:17"]
[BlackClock "0:01:18"]

1. d4 {[%clk 0:02:59]}  g6 {[%clk 0:02:59]} 2. c4 {[%clk 0:02:59]}  Bg7 {[%clk 0:02:59]} 3. Nf3 {[%clk 0:02:59]}  d6 {[%clk 0:02:59]} 4. g3 {[%clk 0:03:00]}  Bd7 {[%clk 0:02:59]} 5. Bg2 {[%clk 0:03:00]}  Qc8 {[%clk 0:03:00]} 6. h4 {[%clk 0:02:57]}  Nc6 {[%clk 0:02:59]} 7. O-O {[%clk 0:02:53]}  h6 {[%clk 0:02:57]} 8. Nc3 {[%clk 0:02:52]}  Bh3 {[%clk 0:02:57]} 9. Be3 {[%clk 0:02:44]}  g5 {[%clk 0:02:53]} 10. Nd5 {[%clk 0:02:27]}  Nf6 {[%clk 0:02:38]} 11. Nxc7+ {[%clk 0:02:16]}  Qxc7 {[%clk 0:02:38]} 12. Bxh3 {[%clk 0:02:15]}  g4 {[%clk 0:02:38]} 13. Bg2 {[%clk 0:02:08]}  gxf3 {[%clk 0:02:37]} 14. exf3 {[%clk 0:02:09]}  d5 {[%clk 0:02:37]} 15. Rc1 {[%clk 0:02:06]}  e6 {[%clk 0:02:35]} 16. Re1 {[%clk 0:02:05]}  Qd7 {[%clk 0:02:33]} 17. f4 {[%clk 0:02:05]}  Ne7 {[%clk 0:02:32]} 18. Bh3 {[%clk 0:02:04]}  O-O {[%clk 0:02:25]} 19. Qf3 {[%clk 0:02:03]}  dxc4 {[%clk 0:02:24]} 20. Rxc4 {[%clk 0:02:02]}  Rac8 {[%clk 0:02:24]} 21. b3 {[%clk 0:02:00]}  h5 {[%clk 0:02:17]} 22. Rec1 {[%clk 0:01:58]}  b5 {[%clk 0:02:15]} 23. Rc5 {[%clk 0:01:56]}  Rfe8 {[%clk 0:02:10]} 24. Bf1 {[%clk 0:01:56]}  a6 {[%clk 0:02:10]} 25. a4 {[%clk 0:01:56]}  Rxc5 {[%clk 0:02:08]} 26. dxc5 {[%clk 0:01:55]}  Rc8 {[%clk 0:02:06]} 27. axb5 {[%clk 0:01:55]}  axb5 {[%clk 0:02:07]} 28. c6 {[%clk 0:01:53]}  Rxc6 {[%clk 0:02:06]} 29. Rxc6 {[%clk 0:01:49]}  Qxc6 {[%clk 0:02:07]} 30. Qxc6 {[%clk 0:01:49]}  Nxc6 {[%clk 0:02:08]} 31. Bxb5 {[%clk 0:01:48]}  Nb4 {[%clk 0:02:08]} 32. Be2 {[%clk 0:01:46]}  Kh7 {[%clk 0:02:04]} 33. Kg2 {[%clk 0:01:46]}  Kg6 {[%clk 0:02:04]} 34. f3 {[%clk 0:01:47]}  Nfd5 {[%clk 0:02:03]} 35. Bd2 {[%clk 0:01:46]}  f5 {[%clk 0:02:03]} 36. g4 {[%clk 0:01:43]}  Bc3 {[%clk 0:02:00]} 37. Bc1 {[%clk 0:01:42]}  Bf6 {[%clk 0:01:57]} 38. Kg3 {[%clk 0:01:41]}  Bc3 {[%clk 0:01:57]} 39. Kf2 {[%clk 0:01:40]}  Bd4+ {[%clk 0:01:56]} 40. Kg3 {[%clk 0:01:37]}  Be3 {[%clk 0:01:31]} 41. Bxe3 {[%clk 0:01:36]}  Nxe3 {[%clk 0:01:32]} 42. Bb5 {[%clk 0:01:36]}  Kf7 {[%clk 0:01:30]} 43. Kf2 {[%clk 0:01:30]}  Ned5 {[%clk 0:01:28]} 44. Kg3 {[%clk 0:01:29]}  Nf6 {[%clk 0:01:25]} 45. Be2 {[%clk 0:01:26]}  Nbd5 {[%clk 0:01:20]} 46. g5 {[%clk 0:01:17]}  Nd7 {[%clk 0:01:18]} 47. Bc4 {[%clk 0:01:17]}  Nf8 {[%clk 0:01:18]} 0-1


[Site "https://www.chess.com"]

[Event "Titled Tuesday Blitz August 09 Early 2022"]
[White "Gareyev, Timur"]
[Black "Jaskolka, Tomasz"]
[WhiteFideId "14200937"]
[BlackFideId "1170791"]
[WhiteElo "2528"]
[BlackElo "2073"]
[Result "1-0"]
[Round "01"]
[TimeControl "180+1"]
[Date "2022.08.09"]
[WhiteClock "0:01:02"]
[BlackClock "0:00:37"]

1. d4 {[%clk 0:02:34]}  d5 {[%clk 0:02:58]} 2. c4 {[%clk 0:02:33]}  c6 {[%clk 0:02:58]} 3. Nc3 {[%clk 0:02:33]}  Nf6 {[%clk 0:02:58]} 4. Nf3 {[%clk 0:02:34]}  a6 {[%clk 0:02:57]} 5. Bf4 {[%clk 0:02:31]}  Bf5 {[%clk 0:02:54]} 6. Qb3 {[%clk 0:02:29]}  Ra7 {[%clk 0:02:52]} 7. e3 {[%clk 0:02:27]}  Nh5 {[%clk 0:02:44]} 8. Bxb8 {[%clk 0:02:26]}  Qxb8 {[%clk 0:02:44]} 9. cxd5 {[%clk 0:02:26]}  cxd5 {[%clk 0:02:37]} 10. Nxd5 {[%clk 0:02:25]}  b5 {[%clk 0:02:26]} 11. Ne5 {[%clk 0:02:24]}  Be6 {[%clk 0:01:57]} 12. Rc1 {[%clk 0:02:01]}  Nf6 {[%clk 0:01:53]} 13. Nc6 {[%clk 0:01:59]}  Qc8 {[%clk 0:01:30]} 14. Nxf6+ {[%clk 0:01:43]}  exf6 {[%clk 0:01:26]} 15. d5 {[%clk 0:01:44]}  Bd7 {[%clk 0:01:10]} 16. Bd3 {[%clk 0:01:31]}  Rc7 {[%clk 0:01:07]} 17. a4 {[%clk 0:01:27]}  b4 {[%clk 0:00:55]} 18. O-O {[%clk 0:01:13]}  Bxc6 {[%clk 0:00:56]} 19. dxc6 {[%clk 0:01:12]}  Rxc6 {[%clk 0:00:55]} 20. Bc4 {[%clk 0:01:06]}  Rc7 {[%clk 0:00:49]} 21. Bxf7+ {[%clk 0:01:03]}  Ke7 {[%clk 0:00:37]} 22. Rxc7+ {[%clk 0:01:01]}  Qxc7 {[%clk 0:00:37]} 23. Qe6+ {[%clk 0:01:01]}  Kd8 {[%clk 0:00:37]} 24. Qe8# {[%clk 0:01:02]} 1-0


[Site "https://www.chess.com"]

[Event "Titled Tuesday Blitz August 09 Early 2022"]
[White "Garriga Cazorla, Pere"]
[Black "Sztokbant, Bernardo Vainzoff"]
[WhiteFideId "32011601"]
[BlackFideId "2115956"]
[WhiteElo "2365"]
[BlackElo "2209"]
[Result "1-0"]
[Round "01"]
[TimeControl "180+1"]
[Date "2022.08.09"]
[WhiteClock "0:01:01"]
[BlackClock "0:00:02"]

1. d4 {[%clk 0:03:00]}  Nf6 {[%clk 0:02:59]} 2. c4 {[%clk 0:02:59]}  e6 {[%clk 0:02:55]} 3. Nc3 {[%clk 0:02:58]}  Bb4 {[%clk 0:02:54]} 4. e3 {[%clk 0:02:57]}  d6 {[%clk 0:02:48]} 5. Bd3 {[%clk 0:02:57]}  e5 {[%clk 0:02:41]} 6. Ne2 {[%clk 0:02:55]}  O-O {[%clk 0:02:40]} 7. a3 {[%clk 0:02:55]}  Bxc3+ {[%clk 0:02:39]} 8. Nxc3 {[%clk 0:02:56]}  exd4 {[%clk 0:02:38]} 9. exd4 {[%clk 0:02:56]}  Re8+ {[%clk 0:02:38]} 10. Be3 {[%clk 0:02:52]}  Nc6 {[%clk 0:02:37]} 11. O-O {[%clk 0:02:50]}  Ne7 {[%clk 0:02:34]} 12. Qc2 {[%clk 0:02:44]}  Ng6 {[%clk 0:02:18]} 13. Rae1 {[%clk 0:02:40]}  Bd7 {[%clk 0:02:05]} 14. f3 {[%clk 0:02:39]}  c6 {[%clk 0:01:58]} 15. Qd2 {[%clk 0:02:38]}  Qc7 {[%clk 0:01:42]} 16. Bf2 {[%clk 0:02:37]}  Nh5 {[%clk 0:01:35]} 17. Bc2 {[%clk 0:02:30]}  Nhf4 {[%clk 0:01:34]} 18. Bxg6 {[%clk 0:02:14]}  Nxg6 {[%clk 0:01:33]} 19. Bg3 {[%clk 0:02:14]}  Ne7 {[%clk 0:01:00]} 20. c5 {[%clk 0:02:08]}  Nf5 {[%clk 0:01:01]} 21. cxd6 {[%clk 0:02:05]}  Qb6 {[%clk 0:01:00]} 22. Re4 {[%clk 0:01:47]}  Rxe4 {[%clk 0:00:53]} 23. fxe4 {[%clk 0:01:47]}  Qxd4+ {[%clk 0:00:47]} 24. Qf2 {[%clk 0:01:40]}  Qxf2+ {[%clk 0:00:37]} 25. Bxf2 {[%clk 0:01:41]}  Nh6 {[%clk 0:00:24]} 26. e5 {[%clk 0:01:40]}  Ng4 {[%clk 0:00:19]} 27. Bd4 {[%clk 0:01:41]}  Re8 {[%clk 0:00:18]} 28. Re1 {[%clk 0:01:40]}  f6 {[%clk 0:00:17]} 29. Bxa7 {[%clk 0:01:31]}  Nxe5 {[%clk 0:00:17]} 30. Rd1 {[%clk 0:01:25]}  Kf7 {[%clk 0:00:16]} 31. Bc5 {[%clk 0:01:23]}  Nc4 {[%clk 0:00:15]} 32. b3 {[%clk 0:01:23]}  Na5 {[%clk 0:00:15]} 33. b4 {[%clk 0:01:20]}  Nc4 {[%clk 0:00:15]} 34. a4 {[%clk 0:01:19]}  Re5 {[%clk 0:00:15]} 35. a5 {[%clk 0:01:17]}  Nxa5 {[%clk 0:00:14]} 36. Bd4 {[%clk 0:01:17]}  Nc4 {[%clk 0:00:08]} 37. Bxe5 {[%clk 0:01:17]}  fxe5 {[%clk 0:00:06]} 38. Na4 {[%clk 0:01:17]}  b6 {[%clk 0:00:04]} 39. Rc1 {[%clk 0:01:15]}  Be6 {[%clk 0:00:03]} 40. Nc3 {[%clk 0:01:01]}  Ke8 {[%clk 0:00:03]} 41. Ne4 {[%clk 0:01:01]}  Kd7 {[%clk 0:00:03]} 42. Ra1 {[%clk 0:01:01]}  Nxd6 {[%clk 0:00:02]} 43. Ra7+ {[%clk 0:01:01]}  Kd8 {[%clk 0:00:02]} 44. Nxd6 {[%clk 0:01:01]}  g6 {[%clk 0:00:02]} 45. Rxh7 {[%clk 0:01:01]} 1-0


[Site "https://www.chess.com"]

[Event "Titled Tuesday Blitz August 09 Early 2022"]
[White "Gil Alba, Hector Luis"]
[Black "Azarov, Sergei"]
[WhiteFideId "3504670"]
[BlackFideId "13501470"]
[WhiteElo "2331"]
[BlackElo "2494"]
[Result "1/2-1/2"]
[Round "01"]
[TimeControl "180+1"]
[Date "2022.08.09"]
[WhiteClock "0:00:29"]
[BlackClock "0:00:05"]

1. e4 {[%clk 0:02:49]}  c5 {[%clk 0:03:00]} 2. Nf3 {[%clk 0:02:49]}  Nc6 {[%clk 0:03:00]} 3. Bb5 {[%clk 0:02:49]}  e6 {[%clk 0:03:00]} 4. O-O {[%clk 0:02:48]}  Nge7 {[%clk 0:03:00]} 5. Nc3 {[%clk 0:02:48]}  a6 {[%clk 0:02:57]} 6. Bxc6 {[%clk 0:02:48]}  Nxc6 {[%clk 0:02:56]} 7. d4 {[%clk 0:02:48]}  cxd4 {[%clk 0:02:56]} 8. Nxd4 {[%clk 0:02:48]}  Be7 {[%clk 0:02:50]} 9. Re1 {[%clk 0:02:47]}  O-O {[%clk 0:02:46]} 10. Nxc6 {[%clk 0:02:45]}  dxc6 {[%clk 0:02:44]} 11. Qg4 {[%clk 0:02:44]}  e5 {[%clk 0:02:40]} 12. Qg3 {[%clk 0:02:44]}  Bf6 {[%clk 0:02:38]} 13. Be3 {[%clk 0:02:42]}  b5 {[%clk 0:02:07]} 14. a4 {[%clk 0:02:39]}  Be6 {[%clk 0:02:03]} 15. Bc5 {[%clk 0:02:31]}  Re8 {[%clk 0:02:01]} 16. a5 {[%clk 0:02:31]}  Qc7 {[%clk 0:01:35]} 17. Qe3 {[%clk 0:02:24]}  h6 {[%clk 0:01:30]} 18. Bb6 {[%clk 0:02:18]}  Qc8 {[%clk 0:01:24]} 19. Red1 {[%clk 0:02:17]}  Be7 {[%clk 0:01:19]} 20. Bc5 {[%clk 0:02:14]}  Qc7 {[%clk 0:01:19]} 21. Bb6 {[%clk 0:02:09]}  Qc8 {[%clk 0:01:18]} 22. Bc5 {[%clk 0:02:09]}  Bg5 {[%clk 0:01:18]} 23. Qg3 {[%clk 0:02:03]}  Bf6 {[%clk 0:01:10]} 24. Qe3 {[%clk 0:02:03]}  Rd8 {[%clk 0:01:08]} 25. Rxd8+ {[%clk 0:02:01]}  Qxd8 {[%clk 0:01:07]} 26. Bb6 {[%clk 0:02:00]}  Qe7 {[%clk 0:01:07]} 27. Rd1 {[%clk 0:01:59]}  Rc8 {[%clk 0:00:57]} 28. Bc5 {[%clk 0:01:57]}  Qe8 {[%clk 0:00:56]} 29. b4 {[%clk 0:01:54]}  Rd8 {[%clk 0:00:55]} 30. Rxd8 {[%clk 0:01:49]}  Qxd8 {[%clk 0:00:56]} 31. Qd3 {[%clk 0:01:41]}  Qxd3 {[%clk 0:00:55]} 32. cxd3 {[%clk 0:01:41]}  g6 {[%clk 0:00:55]} 33. Kf1 {[%clk 0:01:40]}  Kg7 {[%clk 0:00:54]} 34. Ke2 {[%clk 0:01:40]}  h5 {[%clk 0:00:54]} 35. g3 {[%clk 0:01:36]}  h4 {[%clk 0:00:54]} 36. Ke3 {[%clk 0:01:31]}  Bd8 {[%clk 0:00:43]} 37. d4 {[%clk 0:01:21]}  exd4+ {[%clk 0:00:36]} 38. Bxd4+ {[%clk 0:01:21]}  Kh6 {[%clk 0:00:35]} 39. Bc5 {[%clk 0:01:15]}  f5 {[%clk 0:00:33]} 40. f4 {[%clk 0:01:09]}  g5 {[%clk 0:00:30]} 41. exf5 {[%clk 0:01:04]}  Bxf5 {[%clk 0:00:30]} 42. Ne2 {[%clk 0:01:04]}  Kh5 {[%clk 0:00:25]} 43. Nd4 {[%clk 0:01:03]}  Bd7 {[%clk 0:00:25]} 44. Kf3 {[%clk 0:00:55]}  Bf6 {[%clk 0:00:21]} 45. fxg5 {[%clk 0:00:48]}  Kxg5 {[%clk 0:00:19]} 46. gxh4+ {[%clk 0:00:48]}  Kxh4 {[%clk 0:00:19]} 47. Ke4 {[%clk 0:00:47]}  Kg4 {[%clk 0:00:17]} 48. Bd6 {[%clk 0:00:45]}  Be8 {[%clk 0:00:14]} 49. Nb3 {[%clk 0:00:42]}  Bg6+ {[%clk 0:00:14]} 50. Ke3 {[%clk 0:00:42]}  Bf5 {[%clk 0:00:12]} 51. Nd4 {[%clk 0:00:39]}  Bd7 {[%clk 0:00:11]} 52. Nb3 {[%clk 0:00:39]}  Bf5 {[%clk 0:00:10]} 53. Nd4 {[%clk 0:00:38]}  Bg5+ {[%clk 0:00:09]} 54. Ke2 {[%clk 0:00:36]}  Bd7 {[%clk 0:00:10]} 55. Nb3 {[%clk 0:00:35]}  Bc8 {[%clk 0:00:08]} 56. Kd3 {[%clk 0:00:35]}  Bf6 {[%clk 0:00:06]} 57. Nd4 {[%clk 0:00:33]}  Bd7 {[%clk 0:00:05]} 58. Nb3 {[%clk 0:00:32]}  Bf5+ {[%clk 0:00:05]} 59. Kd2 {[%clk 0:00:31]}  Bg5+ {[%clk 0:00:05]} 60. Kc3 {[%clk 0:00:30]}  Bf6+ {[%clk 0:00:05]} 61. Kd2 {[%clk 0:00:30]}  Bg5+ {[%clk 0:00:05]} 62. Kc3 {[%clk 0:00:29]}  Bf6+ {[%clk 0:00:05]} 63. Kd2 {[%clk 0:00:29]} 1/2-1/2


[Site "https://www.chess.com"]

[Event "Titled Tuesday Blitz August 09 Early 2022"]
[White "Ginzburg, Yakov"]
[Black "Mardov, Dimitar"]
[WhiteFideId "4157176"]
[BlackFideId "30919495"]
[WhiteElo "2265"]
[BlackElo "2185"]
[Result "0-1"]
[Round "01"]
[TimeControl "180+1"]
[Date "2022.08.09"]
[WhiteClock "0:00:39"]
[BlackClock "0:00:21"]

1. e4 {[%clk 0:02:55]}  e5 {[%clk 0:03:00]} 2. Nf3 {[%clk 0:02:55]}  Nc6 {[%clk 0:03:00]} 3. Bb5 {[%clk 0:02:55]}  Nf6 {[%clk 0:03:00]} 4. O-O {[%clk 0:02:54]}  Nxe4 {[%clk 0:02:59]} 5. d4 {[%clk 0:02:54]}  Nd6 {[%clk 0:02:56]} 6. dxe5 {[%clk 0:02:54]}  Nxb5 {[%clk 0:02:53]} 7. a4 {[%clk 0:02:54]}  Na3 {[%clk 0:02:43]} 8. Nxa3 {[%clk 0:02:52]}  Be7 {[%clk 0:02:44]} 9. Nc4 {[%clk 0:02:48]}  O-O {[%clk 0:02:43]} 10. Bf4 {[%clk 0:02:48]}  b6 {[%clk 0:02:40]} 11. Re1 {[%clk 0:02:31]}  Bb7 {[%clk 0:02:37]} 12. Qd2 {[%clk 0:02:25]}  Na5 {[%clk 0:02:21]} 13. Nxa5 {[%clk 0:02:23]}  Bxf3 {[%clk 0:02:21]} 14. gxf3 {[%clk 0:02:22]}  bxa5 {[%clk 0:02:21]} 15. Qxa5 {[%clk 0:02:20]}  Rb8 {[%clk 0:02:15]} 16. Qxa7 {[%clk 0:02:19]}  Rxb2 {[%clk 0:02:15]} 17. Re2 {[%clk 0:01:47]}  Rb4 {[%clk 0:01:53]} 18. Bg3 {[%clk 0:01:46]}  h5 {[%clk 0:01:51]} 19. e6 {[%clk 0:01:40]}  fxe6 {[%clk 0:01:43]} 20. Bxc7 {[%clk 0:01:38]}  Qe8 {[%clk 0:01:39]} 21. Kh1 {[%clk 0:01:31]}  Rxf3 {[%clk 0:01:34]} 22. Rg1 {[%clk 0:01:28]}  Rg4 {[%clk 0:01:21]} 23. Rxg4 {[%clk 0:01:25]}  hxg4 {[%clk 0:01:22]} 24. Qd4 {[%clk 0:01:16]}  Qc8 {[%clk 0:00:47]} 25. Bg3 {[%clk 0:01:14]}  Qc6 {[%clk 0:00:45]} 26. Kg1 {[%clk 0:01:12]}  Ra3 {[%clk 0:00:43]} 27. Re4 {[%clk 0:00:55]}  Bf6 {[%clk 0:00:37]} 28. Qc4 {[%clk 0:00:52]}  Ra1+ {[%clk 0:00:31]} 29. Kg2 {[%clk 0:00:52]}  Qb7 {[%clk 0:00:30]} 30. Qb4 {[%clk 0:00:51]}  Qc6 {[%clk 0:00:27]} 31. Qc4 {[%clk 0:00:51]}  Qa8 {[%clk 0:00:22]} 32. f3 {[%clk 0:00:48]}  gxf3+ {[%clk 0:00:21]} 33. Kxf3 {[%clk 0:00:47]}  d5 {[%clk 0:00:21]} 34. Qb5 {[%clk 0:00:45]}  dxe4+ {[%clk 0:00:21]} 35. Kg4 {[%clk 0:00:45]}  Qd5 {[%clk 0:00:19]} 36. Qe8+ {[%clk 0:00:44]}  Kh7 {[%clk 0:00:20]} 37. Bf4 {[%clk 0:00:42]}  Qf5+ {[%clk 0:00:20]} 38. Kg3 {[%clk 0:00:40]}  Rg1+ {[%clk 0:00:20]} 39. Kf2 {[%clk 0:00:39]}  Bd4+ {[%clk 0:00:20]} 40. Ke2 {[%clk 0:00:39]}  Qg4+ {[%clk 0:00:20]} 41. Kd2 {[%clk 0:00:39]}  Qxf4+ {[%clk 0:00:20]} 42. Ke2 {[%clk 0:00:39]}  Qf2# {[%clk 0:00:21]} 0-1


[Site "https://www.chess.com"]

[Event "Titled Tuesday Blitz August 09 Early 2022"]
[White "Goltsev, Dmitry"]
[Black "Sjoberg, Isak"]
[WhiteFideId "24176710"]
[BlackFideId "1521640"]
[WhiteElo "2258"]
[BlackElo "2106"]
[Result "1-0"]
[Round "01"]
[TimeControl "180+1"]
[Date "2022.08.09"]
[WhiteClock "0:00:08"]
[BlackClock "0:00:11"]

1. e4 {[%clk 0:02:21]}  c5 {[%clk 0:02:59]} 2. Nf3 {[%clk 0:02:20]}  d6 {[%clk 0:02:59]} 3. d4 {[%clk 0:02:20]}  cxd4 {[%clk 0:03:00]} 4. Nxd4 {[%clk 0:02:21]}  Nf6 {[%clk 0:03:01]} 5. Nc3 {[%clk 0:02:21]}  a6 {[%clk 0:03:02]} 6. Be3 {[%clk 0:02:16]}  e6 {[%clk 0:03:01]} 7. f3 {[%clk 0:02:15]}  b5 {[%clk 0:03:01]} 8. a3 {[%clk 0:02:14]}  Nbd7 {[%clk 0:02:58]} 9. Qd2 {[%clk 0:02:14]}  Bb7 {[%clk 0:02:58]} 10. g4 {[%clk 0:02:10]}  Nb6 {[%clk 0:02:58]} 11. h4 {[%clk 0:02:07]}  Rc8 {[%clk 0:02:58]} 12. g5 {[%clk 0:02:05]}  Nfd7 {[%clk 0:02:58]} 13. Bd3 {[%clk 0:02:02]}  Ne5 {[%clk 0:02:56]} 14. O-O {[%clk 0:01:54]}  h6 {[%clk 0:02:41]} 15. Qg2 {[%clk 0:01:48]}  hxg5 {[%clk 0:02:36]} 16. hxg5 {[%clk 0:01:48]}  Be7 {[%clk 0:02:30]} 17. g6 {[%clk 0:01:40]}  Nbc4 {[%clk 0:01:45]} 18. gxf7+ {[%clk 0:01:33]}  Kxf7 {[%clk 0:01:45]} 19. Bf2 {[%clk 0:00:54]}  Rh6 {[%clk 0:01:38]} 20. f4 {[%clk 0:00:46]}  Rg6 {[%clk 0:01:35]} 21. Bg3 {[%clk 0:00:46]}  Nxd3 {[%clk 0:01:22]} 22. cxd3 {[%clk 0:00:40]}  Ne3 {[%clk 0:01:23]} 23. Qf3 {[%clk 0:00:39]}  Nxf1 {[%clk 0:01:18]} 24. Kxf1 {[%clk 0:00:39]}  Bf6 {[%clk 0:01:11]} 25. Nxe6 {[%clk 0:00:37]}  Rxg3 {[%clk 0:01:05]} 26. Nxd8+ {[%clk 0:00:35]}  Rxd8 {[%clk 0:00:46]} 27. Qxg3 {[%clk 0:00:34]}  Rh8 {[%clk 0:00:45]} 28. Kg2 {[%clk 0:00:30]}  a5 {[%clk 0:00:42]} 29. Rh1 {[%clk 0:00:29]}  Rc8 {[%clk 0:00:41]} 30. Qg4 {[%clk 0:00:25]}  Rc7 {[%clk 0:00:40]} 31. Nxb5 {[%clk 0:00:22]}  Rc2+ {[%clk 0:00:39]} 32. Kf3 {[%clk 0:00:22]}  Ke7 {[%clk 0:00:32]} 33. Rh8 {[%clk 0:00:15]}  Rxb2 {[%clk 0:00:23]} 34. a4 {[%clk 0:00:15]}  d5 {[%clk 0:00:22]} 35. exd5 {[%clk 0:00:11]}  Bxd5+ {[%clk 0:00:22]} 36. Ke3 {[%clk 0:00:11]}  Rg2 {[%clk 0:00:16]} 37. Qc8 {[%clk 0:00:11]}  Rg3+ {[%clk 0:00:13]} 38. Kf2 {[%clk 0:00:10]}  Rg2+ {[%clk 0:00:13]} 39. Kf1 {[%clk 0:00:10]}  Bb2 {[%clk 0:00:10]} 40. Qf8+ {[%clk 0:00:08]}  Ke6 {[%clk 0:00:10]} 41. Qg8+ {[%clk 0:00:08]}  Kf5 {[%clk 0:00:10]} 42. Qxd5+ {[%clk 0:00:09]}  Kxf4 {[%clk 0:00:11]} 43. Rf8+ {[%clk 0:00:09]}  Kg3 {[%clk 0:00:11]} 44. Qxg2+ {[%clk 0:00:08]}  Kh4 {[%clk 0:00:11]} 45. Rh8# {[%clk 0:00:08]} 1-0


[Site "https://www.chess.com"]